Cogmind - Beta 11.1 @@@ ROGUE MODE // 2022.12.12 @ 14:23:04 Player: sasha Result: Destroyed by H-55 Commando with Gauss Rifle Performance ------------- Evolutions (2) 1000 Regions Visited (5) 1000 Robots Destroyed (69) 345 Value Destroyed (2349) 2349 Prototype IDs (5) 100 Alien Tech Used (0) 0 Bonus (791) 791 TOTAL SCORE: 5585 Bonus ------- High Alert Combat Kills 91 Entered Garrisons 200 Used RIF Installer 500 Cogmind --------- Core Integrity 0/550 Matter 290/300 Energy 88/100 System Corruption 3% Temperature Cool (0) Movement Walking (120) Location -8/Materials Parts ------- > --- POWER (1) -------- (None) > --- PROPULSION (3) --- Aluminum Leg Aluminum Leg Carbon-fiber Leg > --- UTILITY (5) ------ Melee Analysis Suite Microactuators Microactuators Actuator Array > --- WEAPON (2) ------- Advanced Assault Cannon Chainsword > --- INVENTORY (5) ---- Light Nuclear Core Improved Signal Interpreter Plasma Cannon Great Maul Peak State ------------ > --- POWER ------------ Enhanced Nuclear Core > --- PROPULSION ------- Improved Carbon-fiber Leg Improved Carbon-fiber Leg Improved Carbon-fiber Leg > --- UTILITY ---------- Microactuators Microactuators Microactuators Reaction Control System Improved Utility Shielding > --- WEAPON ----------- Advanced Assault Cannon Chainsword > --- INVENTORY -------- Enhanced Nuclear Core Improved Carbon-fiber Leg Plasma Cannon Advanced Assault Cannon Chainsword [Rating: 45] Favorites ----------- Power Light Ion Engine Engine Light Ion Engine Power Core Enhanced Nuclear Core Propulsion Aluminum Leg Leg Aluminum Leg Utility Microactuators Device Microactuators Storage Large Matter Pod Processor Signal Interpreter Protection Improved Utility Shielding Weapon High-powered Shotgun Energy Gun Medium Laser Ballistic Gun High-powered Shotgun Ballistic Cannon Advanced Assault Cannon Slashing Weapon Chainsword Build | -11 -10 -9 -8 -8 -8 ------- Run | Scr Mat Mat Mat Gar Mat Slots Evolved 4 | . . 2 2 . . Power . | . . . . . . Propulsion 1 | . . . 1 . . Utility 3 | . . 2 1 . . Weapon . | . . . . . . Parts Attached 66 | 7 5 26 11 7 10 Power 9 | 2 1 2 1 1 2 Engine 5 | 2 1 2 . . . Core 4 | . . . 1 1 2 Reactor . | . . . . . . Propulsion 20 | 2 3 4 3 3 5 Treads . | . . . . . . Leg 20 | 2 3 4 3 3 5 Wheel . | . . . . . . Hover . | . . . . . . Flight . | . . . . . . Utility 19 | 1 1 9 4 1 3 Device 11 | . 1 3 4 1 2 Storage 2 | 1 . 1 . . . Processor 4 | . . 3 . . 1 Hackware . | . . . . . . Protection 2 | . . 2 . . . Artifact . | . . . . . . Weapon 18 | 2 . 11 3 2 . Energy Gun 2 | 1 . 1 . . . Energy Cannon . | . . . . . . Ballistic Gun 9 | 1 . 8 . . . Ballistic Cannon 4 | . . 2 1 1 . Launcher . | . . . . . . Special Weapon . | . . . . . . Impact Weapon . | . . . . . . Slashing Weapon 3 | . . . 2 1 . Piercing Weapon . | . . . . . . Special Melee Weapon . | . . . . . . Unidentified Prototypes 1 | . . . 1 . . Parts Lost 19 | . 1 8 . 7 3 Power 4 | . 1 2 . 1 . Propulsion 7 | . . 2 . 3 2 Utility 5 | . . 2 . 2 1 Weapon 3 | . . 2 . 1 . Highest Loss Streak 6 | . 1 3 . 6 2 To Critical Strikes . | . . . . . . Average Slot Usage (%) 97 | . 95 99 95 86 98 Engine 6 | . 12 10 4 . . Core 3 | . . . 4 8 8 Leg 23 | . 28 21 27 23 26 Device 23 | . 11 15 20 31 35 Storage 2 | . 14 2 2 . . Processor 11 | . . 17 10 . 8 Protection 5 | . . 7 9 7 . Energy Gun 3 | . 14 4 . . . Ballistic Gun 7 | . 14 12 6 . . Ballistic Cannon 6 | . . 4 4 9 9 Slashing Weapon 3 | . . . 5 5 9 Naked Turns . | . . . . . . Heaviest Build 28 | 13 14 14 26 26 28 Greatest Support 54 | 20 20 26 54 54 43 Greatest Overweight (x) 7 | . . . . 7 . Average Overweight (x) . | . . . . . . Largest Inventory Capacity 8 | 8 8 8 5 5 5 Average Capacity 5 | 7 8 5 5 5 5 Most Carried 8 | 5 8 5 5 5 5 Average Carried 4 | 2 5 4 4 4 4 Final Capacity 8 | 8 8 5 5 5 5 Final Carried 5 | 4 5 5 5 3 4 Class Distribution -------------------- 85% | Mutant 13% | Scavenger-Skirmisher Dominant Class ---------------- Mutant | -10/Materials Mutant | -9/Materials Mutant | -8/Materials Mutant | -8/Garrison Mutant | -8/Materials Resources | -11 -10 -9 -8 -8 -8 ----------- Run | Scr Mat Mat Mat Gar Mat Matter Collected 1703 | 263 61 857 70 239 213 Remotely . | . . . . . . Salvage Created 2269 | 27 206 1046 107 366 517 Parts 141 | 3 12 78 5 14 29 Haulers Intercepted 4 | . . 4 . . . Recyclers Shooed 2 | . . 2 . . . Parts Field Recycled . | . . . . . . Retrieved Matter . | . . . . . . Parts Self-Destructed . | . . . . . . Prevented . | . . . . . . Kills | -11 -10 -9 -8 -8 -8 ------- Run | Scr Mat Mat Mat Gar Mat Combat Hostiles Destroyed 56 | . 5 27 2 12 10 Melee 17 | . . . . 8 9 Guns 17 | . 3 14 . . . Cannons 20 | . . 13 2 4 1 Classes Destroyed 10 | 1 2 4 . 2 1 Tunneler 1 | 1 . . . . . Hauler 4 | . . 4 . . . Recycler 3 | . . 3 . . . Watcher 5 | . 1 4 . . . Swarmer 17 | . . 14 . 3 . Grunt 22 | . 5 6 . 7 4 Duelist 1 | . . . . . 1 Protector 1 | . . . . 1 . Sentry 14 | . . 7 2 . 5 Demolisher 1 | . . . . 1 . Best Kill Streak 7 | 1 2 7 2 3 3 Combat Bots Only 5 | . 2 5 2 3 3 Max Kills in Single Turn 2 | 1 1 2 1 1 1 Gunslinging . | . . . . . . Exploded . | . . . . . . Melee 1 | . . . . 1 1 Uniques/NPCs Destroyed . | . . . . . . Combat | -11 -10 -9 -8 -8 -8 -------- Run | Scr Mat Mat Mat Gar Mat Damage Taken 3517 | . 407 1038 31 1330 711 Core 882 | . 78 253 14 302 235 Absorbed by Shields . | . . . . . . Redirected to Shielding 107 | . . 3 . 104 . Core Remaining (%) 68 | 100 68 36 . . . Volleys Fired 151 | 1 28 77 2 40 3 Largest 2 | 2 2 2 1 1 1 Hottest 90 | 70 70 90 48 48 48 Shots Fired 255 | 2 56 152 2 40 3 Gun 144 | 2 56 86 . . . Cannon 111 | . . 66 2 40 3 Launcher . | . . . . . . Special . | . . . . . . Kinetic 199 | 1 28 125 2 40 3 Thermal 45 | 1 28 16 . . . Explosive . | . . . . . . Electromagnetic 11 | . . 11 . . . Robot Hit Streak 12 | 1 12 11 4 7 4 Robot Miss Streak 5 | 1 5 4 . 4 . Penetration Max . | . . . . . . Secondary Targets 4 | . 2 2 . . . Max Gunslinging Chain 1 | . 1 1 . . . Shots Hit Robots 224 | 1 38 104 2 46 33 Core Hits 94 | 2 11 51 2 18 10 Critical Kills . | . . . . . . Critical Parts Destroyed 1 | . . 1 . . . Critical Strikes 12 | 1 4 3 . 2 2 Burn 6 | 1 4 1 . . . Destroy 1 | . . 1 . . . Blast 1 | . . . . . 1 Corrupt 1 | . . 1 . . . Sever 3 | . . . . 2 1 Melee Attacks 67 | . . . . 32 35 Impact . | . . . . . . Slashing 67 | . . . . 32 35 Piercing . | . . . . . . Sneak Attacks 1 | . . . . . 1 Combat Hostiles 1 | . . . . . 1 Follow-up Attacks . | . . . . . . Damage Inflicted 5040 | 18 436 1969 50 1496 1071 Guns 1540 | 18 436 1086 . . . Cannons 1617 | . . 862 50 632 73 Explosions . | . . . . . . Melee 1862 | . . . . 864 998 Ramming 21 | . . 21 . . . Kinetic 2673 | 6 171 1741 50 632 73 Thermal 375 | 12 265 98 . . . Explosive . | . . . . . . Electromagnetic 109 | . . 109 . . . Impact . | . . . . . . Slashing 1862 | . . . . 864 998 Piercing . | . . . . . . Highest Corruption 3 | . . 2 3 3 3 Average Corruption 2 | . . 2 2 3 3 Corruption Purged . | . . . . . . Corruption Blocked . | . . . . . . Effects 30 | . . . 1 9 20 Message Errors 8 | . . . . 1 7 Matter Fused 8 | . . . 1 3 4 Heat Flow Errors 3 | . . . . 2 1 Energy Discharges 5 | . . . . 2 3 Data Loss (minor) 1 | . . . . 1 . Data Loss (major) 4 | . . . . . 4 Alerts 1 | . . . . . 1 Overload Shots . | . . . . . . Overflow Damage 110 | . . . . 71 39 Projectiles . | . . . . . . Explosions . | . . . . . . Melee 110 | . . . . 71 39 Knockbacks 12 | . . 7 . 5 . Impact . | . . . . . . Kinetic 11 | . . 6 . 5 . Secondary 1 | . . 1 . . . Self-Inflicted Damage . | . . . . . . Shots . | . . . . . . Rammed . | . . . . . . Targets Rammed 7 | . . 7 . . . Kicked 7 | . . 7 . . . Crushed . | . . . . . . Highest Temperature 392 | 30 392 84 2 273 224 Average Temperature 107 | 18 157 34 1 84 120 Received Heat Transfer 1098 | . 192 276 9 558 63 Siege Activations . | . . . . . . Robots Corrupted . | . . . . . . Combat Hostiles . | . . . . . . Parts Fried . | . . . . . . Impact Corruptions . | . . . . . . Robots Melted 2 | . 2 . . . . Combat Hostiles 2 | . 2 . . . . Parts Melted 3 | . 2 1 . . . Heat Transferred 1554 | 111 1073 370 . . . Parts Sabotaged . | . . . . . . Parts Stolen . | . . . . . . Parts Stripped . | . . . . . . Power Chain Reactions . | . . . . . . Missiles Intercepted . | . . . . . . Alert | -11 -10 -9 -8 -8 -8 ------- Run | Scr Mat Mat Mat Gar Mat Peak Influence 653 | 5 192 653 338 496 386 Initial 248 | . 3 80 248 226 241 Average 266 | . 104 283 261 366 245 Maximum Alert Level 2 | . . 2 1 2 1 Low Security (%) 36 | 100 100 42 . . 29 Level 1 45 | . . 25 100 80 70 Level 2 18 | . . 32 . 19 . Level 3 . | . . . . . . Level 4 . | . . . . . . Level 5 . | . . . . . . High Security . | . . . . . . Max Security . | . . . . . . Squads Dispatched 7 | . 3 2 . . 2 Investigation 3 | . 1 1 . . 1 Extermination . | . . . . . . Reinforcement 4 | . 2 1 . . 1 Assault . | . . . . . . Garrison . | . . . . . . Intercept . | . . . . . . Searches Triggered . | . . . . . . Construction Impeded . | . . . . . . Haulers Reinforced . | . . . . . . Active Scanning Responses . | . . . . . . Cargo Convoy Interrupts . | . . . . . . Stealth | -11 -10 -9 -8 -8 -8 --------- Run | Scr Mat Mat Mat Gar Mat Distress Signals 10 | . 2 7 . . 1 Communications Jammed . | . . . . . . Distress Signals . | . . . . . . Times Spotted 80 | . 9 41 2 15 13 Peak Tracking Total 7 | . 4 5 2 4 7 Tactical Retreats 7 | . . 3 . 1 3 Traps | -11 -10 -9 -8 -8 -8 ------- Run | Scr Mat Mat Mat Gar Mat Traps Triggered 10 | . 3 4 2 . 1 Indirectly . | . . . . . . Trap Hack Attempts . | . . . . . . Triggered . | . . . . . . Disarmed . | . . . . . . Reprogrammed . | . . . . . . Reused . | . . . . . . Traps Extracted . | . . . . . . Installed . | . . . . . . Triggered . | . . . . . . Machines | -11 -10 -9 -8 -8 -8 ---------- Run | Scr Mat Mat Mat Gar Mat Machines Disabled 4 | . . 2 . 2 . Max in Single Turn 1 | . . 1 . 1 . Garrison Relay 2 | . . . . 2 . Machines Sabotaged . | . . . . . . Garrisons Compromised . | . . . . . . Overloaded Fab Kills . | . . . . . . Hacking | -11 -10 -9 -8 -8 -8 --------- Run | Scr Mat Mat Mat Gar Mat Machines Accessed 13 | . 3 7 1 . 2 Terminals 10 | . 3 7 . . . Fabricators . | . . . . . . Repair Stations 1 | . . . . . 1 Recycling Units 1 | . . . . . 1 Scanalyzers . | . . . . . . Garrison Access 1 | . . . 1 . . Total Hacks 38 | . 5 26 2 . 5 Successful 29 | . 5 19 2 . 3 Failed 9 | . . 7 . . 2 Catastrophic 2 | . . 2 . . . Database Lockouts . | . . . . . . Manual 3 | . . 3 . . . Terminals 31 | . 5 26 . . . Fabricators . | . . . . . . Repair Stations 2 | . . . . . 2 Recycling Units 3 | . . . . . 3 Scanalyzers . | . . . . . . Garrison Access 2 | . . . 2 . . Terminal Hacks 24 | . 5 19 . . . Record 3 | . . 3 . . . Prototype ID Bank 3 | . . 3 . . . Level Access Points 1 | . . 1 . . . Branch Access Points 1 | . 1 . . . . Alert Level 2 | . 1 1 . . . Maintenance Status 3 | . . 3 . . . Security Status 1 | . 1 . . . . Transport Status 1 | . . 1 . . . Assault Status 1 | . . 1 . . . Hauler Manifests 2 | . . 2 . . . Registered Components 1 | . . 1 . . . Zone Layout 5 | . 2 3 . . . Fabricator Hacks . | . . . . . . Repair Station Hacks . | . . . . . . Recycling Unit Hacks 3 | . . . . . 3 Report Inventory 1 | . . . . . 1 Retrieve Components 2 | . . . . . 2 Scanalyzer . | . . . . . . Garrison Access Hacks 2 | . . . 2 . . Unlock Access 1 | . . . 1 . . Coupler Status 1 | . . . 1 . . Unauthorized Hacks . | . . . . . . Terminals . | . . . . . . Fabricators . | . . . . . . Repair Stations . | . . . . . . Recycling Units . | . . . . . . Scanalyzers . | . . . . . . Garrison Access . | . . . . . . Data Cores Recovered . | . . . . . . Used . | . . . . . . Hacking Detections 9 | . 1 5 1 . 2 Full Trace Events 3 | . 1 2 . . . Feedback Events . | . . . . . . Feedback Blocked . | . . . . . . Robot Schematics Acquired . | . . . . . . Robots Built . | . . . . . . Authchips . | . . . . . . Time . | . . . . . . Total Robot Build Rating . | . . . . . . Part Schematics Acquired . | . . . . . . Parts Built . | . . . . . . Authchips . | . . . . . . Time . | . . . . . . Total Part Build Rating . | . . . . . . Parts Repaired . | . . . . . . Time . | . . . . . . Parts Recycled . | . . . . . . Recycled Matter . | . . . . . . Retrieved Matter . | . . . . . . Retrieved Components 9 | . . . . . 9 Parts Scanalyzed . | . . . . . . Part Schematics Acquired . | . . . . . . Parts Damaged . | . . . . . . Bothacking | -11 -10 -9 -8 -8 -8 ------------ Run | Scr Mat Mat Mat Gar Mat Used RIF Installer 1 | . . . . 1 . Robots Hacked . | . . . . . . Non-combat . | . . . . . . Combat . | . . . . . . Robot Hacks Applied . | . . . . . . Relay Couplers Released 9 | . . . . 9 . Machine Destruction 9 | . . . . 9 . Fabnet Peak Effective % . | . . . . . . Robots Rewired . | . . . . . . Allies Hacked . | . . . . . . Hacks Repelled . | . . . . . . Allies | -11 -10 -9 -8 -8 -8 -------- Run | Scr Mat Mat Mat Gar Mat Total Allies . | . . . . . . Largest Group . | . . . . . . Highest-Rated Group . | . . . . . . Highest-Rated Ally . | . . . . . . Total Orders . | . . . . . . Ally Attacks . | . . . . . . Total Damage . | . . . . . . Kills . | . . . . . . Allies Corrupted . | . . . . . . Allies Melted . | . . . . . . Intel | -11 -10 -9 -8 -8 -8 ------- Run | Scr Mat Mat Mat Gar Mat Robot Analysis Total . | . . . . . . Derelict Logs Recovered . | . . . . . . Drone Launches . | . . . . . . Drone Recoveries . | . . . . . . Exploration | -11 -10 -9 -8 -8 -8 ------------- Run | Scr Mat Mat Mat Gar Mat Turns Passed 4230 | 59 263 2069 209 488 1142 Spaces Moved 1919 | 44 134 927 108 251 455 Core 33 | 18 . . . 15 . Treads . | . . . . . . Legs 1886 | 26 134 927 108 236 455 Wheels . | . . . . . . Hover . | . . . . . . Flight . | . . . . . . Fastest Speed 50 | 50 120 120 120 120 120 Average Speed 121 | 91 120 120 120 136 120 Slowest Speed 400 | 120 120 120 120 400 120 Overloaded Moves . | . . . . . . Propulsion Burnouts . | . . . . . . Robots Hopped . | . . . . . . Cave-ins Triggered . | . . . . . . Exploration Rate (%) 33 | 3 33 69 6 51 37 Regions Visited 5 Branch Regions . Pre-discovered Areas . | . . . . . . Known Exits Taken 2 | . . 1 1 . . Unknown Exits Taken 2 | 1 1 . . . . Scrap Searched . | . . . . . . Spaces Dug . | . . . . . . Terrain Destroyed 2 | . . 2 . . . Melee . | . . . . . . Projectile 2 | . . 2 . . . AOE . | . . . . . . Terrain Rammed . | . . . . . . Walls Destroyed . | . . . . . . Machines Disabled . | . . . . . . Actions | -11 -10 -9 -8 -8 -8 --------- Run | Scr Mat Mat Mat Gar Mat Total 3553 | 59 186 1732 189 347 1040 Wait 1249 | . 9 661 44 15 520 Move 1915 | 43 133 926 108 250 455 Hop . | . . . . . . Pick Up 54 | 8 7 19 7 3 10 Fast Attach 24 | 2 . 11 9 1 1 Attach 25 | 4 2 10 . 5 4 Detach 1 | . . . 1 . . Swap 17 | 1 3 5 2 1 5 Drop 43 | . 4 16 16 . 7 Fire 151 | 1 28 77 2 40 3 Melee 67 | . . . . 32 35 Ram . | . . . . . . Kick 7 | . . 7 . . . Crush . | . . . . . . Escape Stasis . | . . . . . . Rewire . | . . . . . . Trap . | . . . . . . Miscellaneous . | . . . . . . Route ------- -11/Scrapyard -10/Materials (discovered 3 exits: *Mat / Min x2) -9/Materials (discovered 4 exits: *Mat x3 / *Min) -8/Materials -8/Garrison -8/Materials History --------- Turn | Location | Event 8 | -11/Scrapyard | Discovered new exit (range 16) 60 | -11/Scrapyard | Entered Materials 121 | -10/Materials | Discovered new exit (range 17) 268 | -10/Materials | Discovered new exit (range 8) 295 | -10/Materials | Identified exit to Mines 323 | -10/Materials | Entered another Materials area 323 | -9/Materials | Evolved 2 slots: Utility x2 606 | -9/Materials | Build established: Scavenger-Skirmisher 1237 | -9/Materials | Build established: Mutant 1641 | -9/Materials | Discovered new exit (range 4) 1647 | -9/Materials | Identified exit to Materials 2064 | -9/Materials | Core integrity fell below 50% 2104 | -9/Materials | Lost 3 parts (1p1n1w) 2162 | -9/Materials | Discovered new exit (range 6) 2167 | -9/Materials | Identified exit to Mines 2392 | -9/Materials | Entered another Materials area 2392 | -8/Materials | Evolved 2 slots: Propulsion x1, Utility x1 2601 | -8/Materials | Identified exit to Garrison 2601 | -8/Materials | Entered Garrison 2607 | -8/Garrison | Installed Relay Interface Framework 2644 | -8/Garrison | Triggered checkpoint 2676 | -8/Garrison | Garrison Relay disabled 2716 | -8/Garrison | Triggered checkpoint 2775 | -8/Garrison | Triggered checkpoint 2784 | -8/Garrison | Triggered checkpoint 2843 | -8/Garrison | Core integrity fell below 50% 2873 | -8/Garrison | Lost 6 parts (1p3n1u1w) 3016 | -8/Garrison | Triggered checkpoint 3049 | -8/Garrison | Garrison Relay disabled 3078 | -8/Garrison | Discovered new exit (range 10) 3089 | -8/Garrison | Entered Materials 4192 | -8/Materials | Core integrity fell below 20% 4231 | -8/Materials | Destroyed by H-55 Commando with Gauss Rifle Last Messages --------------- 04081_ Y-45 Defender destroyed. 04082_ Acquired 13 matter. 04087_ K-01 Serf collects debris. 04089_ Acquired Aluminum Leg. 04186_ QX>KZFE=GCAYWYSZ5V2Z&AMAHOXWBE 04187_ C-30 ARC bursts open, deploying its payload. 04187_ H-55 Commando unfolds itself. 04187_ Slug penetrates Wall. 04187_ K-01 Serf collects debris. 04191_ Penetrated by Slug. 04218_ Carbon-fiber Leg destroyed. 04218_ Destroyed Imp. Aluminum Leg. 04218_ L-31 Rogue destroyed. 04220_ G-47 Trooper destroyed. 04222_ System corrupted: Energy discharge (-89). 04222_ Slug penetrates Wall. 04227_ Microactuators destroyed. 04228_ Slug penetrates Wall. 04229_ Enh. Nuclear Core severed. 04231_ Slug penetrates Wall. Map ----- +----------------------------------------------------+ | = # """ """ #?????????????????????????????? | | ] # """ """ #?????????????????????????????? | | #####+#### !== #?????????????????????????????? | | ?# ###+#######?????????????????????????????? | | ?# % =!#????????????????????????????????? | | ?# *= * #????????????????????????????????? | | ?# #????????????????????????????????? | | ?# #????????????????????????????????? | | ?# ####?????????????????????????????? | | ?# ## !!##????????????????????????????? | | ?### #### !#????????????????????????????? | | ???# #??# !#???????????? ???????????????? | | #??# #??# !#???????????? ???????????????? | | ?# #??# !#???????????? ???????????????? | | ?# #??# !!##???????????? ???????????????? | | " # #??# =% ####????????????? ???????????????? | | " # ######+###################+####???????????? | | " + ## !=[ ## # #???????????? | | # ##!=[ """ ## # #???????????? | | #### ##!=[ """ ## # #???????????? | | ??# #=[[ """ ## # #???????????? | | ### # ## # [!] #???????????? | | # """ ## # [! #???????????? | | ### # """ "" ## # !] #???????????? | | #?# ! # """ S"" ## # #???????????? | | #?####### "" ## %/@ #?? ?????????????? | | #???????# [ #####l########/################ | | #??#################??# % " | | #??# #????????????# %" | | #### #?#########??# " | | #? #??############### ##### ###? | | #+## #?""""" #??############??# #????????? | | # #?""""" #??# #??# #????????? | | "" ## ##?""""" #??# #### #????????? | | "" ## #??""""" !#??# #????????? | | "" ## #??""""" #??# ########### #????????? | | ## #??""""" = #??# ## # #????????? | | ##### #?#""""" #??# ## # #????????? | | # #?# #?## ## # #????????? | | # ##########+### # # #????????? | | "" # = # """ # #????????? | | """ + =% + """"" # ????????? | | S" # !! # """"" # ???????? | | """ # ##########/### # """"" # ???????? | | """ # #???# ## ## """ #######??????? | | # #???# """ ## ###############????????? | | ##### #???# """ !## ## #????????? | | # #???# """ ## ## """ """ #????????? | | # #???# ## ## "Y" """ !#????????? | | !# #???# ## ## ! * """ #????????? | +----------------------------------------------------+ Best States ------------- Heat Dissipation 45 Energy Generation 17 Energy Capacity 300 Matter Stores 450 Matter Capacity 450 Sight Range 16 Robot Scan Range 14 Terrain Scan Range 16 Terrain Scan Density 85 Utility Shielding 66 Melee Speed Boost 50 Evasion (%) 59 Targeting Accuracy 6 Melee Accuracy 5 Item Schematics ----------------- None Robot Schematics ------------------ None Fabricated ------------ Nothing Alien Tech Used ----------------- None Achievements -------------- None Challenges ------------ None Game ------ Seed PulseSpliceFilter Manual? 0 Play Time 00:47:02 Cumulative 34.6 hours Start 2022.12.12 @ 13:34:33 End 2022.12.12 @ 14:23:04 Sessions 1 Manual Loads 0 Difficulty Rogue Special Mode None Game No. 42 Rogue 42 Adventurer 0 Explorer 0 Win Type - Total 0 Types 0/0/0/0/0/0/0/0/0 Lore% 17 Gallery% 32 Achievement% 28 Wizard Run 0 Options --------- ASCII 0 Keyboard 0 Movement Mouse Keybinds 0 Fullscreen 2 Font 24/Smallcaps Map View 76x50 Tactical HUD 1 Map Filters NONE Filters NONE Steam 1 RUN: 2b129e52-cb34-479e-bce0-bc185d292106